[Event "Polish University-ch Open 2024"]
[Site "Lublin"]
[Date "2024.02.24"]
[Round "6.15"]
[White "Namyslak, Piotr"]
[Black "Pniaczek, Marek"]
[Result "1-0"]
[ECO "A36"]
[WhiteElo "1763"]
[BlackElo "2116"]
[Annotator "RC"]
[PlyCount "95"]
[EventDate "2024.02.22"]
[EventType "swiss"]
[EventCountry "POL"]
[SourceTitle "playchess.com"]
[Source "ChessBase"]
[SourceQuality "1"]
[TimeControl "600+3"]

1. c4 {[%emt 0:00:32]} e6 {[%emt 0:00:03]} 2. e4 {[%emt 0:00:01]} c5 {[%emt 0:00:08]} 3. Nc3 {[%emt 0:00:02]} Nc6 {[%emt 0:00:08]} 4. g3 {[%emt 0:00:13]} g6 {[%emt 0:00:04]} 5. Bg2 {[%emt 0:00:05]} Bg7 {[%emt 0:00:02]} 6. Nge2 {[%emt 0:00:08]} Nge7 {[%emt 0:00:06]} 7. f4 {[%emt 0:00:14]} d6 {[%emt 0:00:46]} 8. O-O {[%emt 0:00:27]} O-O {[%emt 0:00:03]} 9. b3 {[%emt 0:00:23]} b6 {[%emt 0:00:29]} 10. Bb2 {[%emt 0:00:05]} Bb7 {[%emt 0:00:02]} 11. Na4 {[%emt 0:00:50]} Nd4 {[%emt 0:00:35]} 12. Bxd4 {[%emt 0:01:23]} cxd4 {[%emt 0:00:07]} 13. d3 {[%emt 0:00:00]} d5 {[%emt 0:00:47]} 14. cxd5 {[%emt 0:00:30]} exd5 {[%emt 0:00:03]} 15. e5 {[%emt 0:00:03]} Nf5 {[%emt 0:00:09]} 16. Qd2 {[%emt 0:00:02]} Ne3 {[%emt 0:00:13]} 17. Rfc1 {[%emt 0:00:07]} Nxg2 {[%emt 0:00:38]} 18. Kxg2 {[%emt 0:00:02]} f6 {[%emt 0:00:37]} 19. exf6 {[%emt 0:01:35]} Bxf6 {[%emt 0:00:15]} 20. Ng1 {[%emt 0:00:27]} Re8 {[%emt 0:00:17]} 21. Re1 {[%emt 0:00:39]} Re3 {[%emt 0:00:06]} 22. Re2 {[%emt 0:00:01]} Qe7 {[%emt 0:00:22]} 23. Rae1 {[%emt 0:00:02]} Re8 {[%emt 0:00:04]} 24. Nb2 {[%emt 0:00:08]} Ba6 {[%emt 0:01:24]} 25. Kh1 {[%emt 0:01:03]} Qc5 {[%emt 0:02:51]} 26. Nd1 {[%emt 0:00:11]} Rxe2 {[%emt 0:00:31]} 27. Rxe2 {[%emt 0:00:01]} Rc8 {[%emt 0:00:03]} 28. Nf2 {[%emt 0:00:12]} Qc3 {[%emt 0:00:06]} 29. Qd1 {[%emt 0:00:25]} Qc1 {[%emt 0:00:11]} 30. Qxc1 {[%emt 0:00:41]} Rxc1 {[%emt 0:00:02]} 31. Re6 {[%emt 0:00:07]} Kf7 {[%emt 0:00:24]} 32. Re2 {[%emt 0:00:15]} Rc3 {[%emt 0:00:00]} 33. Rd2 {[%emt 0:00:04]} Bc8 {[%emt 0:00:00]} 34. Kg2 {[%emt 0:00:06]} h5 {[%emt 0:00:00]} 35. Ne2 {[%emt 0:00:04]} Rc7 {[%emt 0:00:00]} 36. h3 {[%emt 0:00:06]} Re7 {[%emt 0:00:00]} 37. Ng1 {[%emt 0:00:13]} Ba6 {[%emt 0:00:01]} 38. Re2 {[%emt 0:00:06]} Rc7 {[%emt 0:00:02]} 39. Nf3 {[%emt 0:00:04]} Rc3 {[%emt 0:00:04]} 40. Rd2 {[%emt 0:00:06]} Rc1 {[%emt 0:00:05]} 41. g4 {[%emt 0:00:02]} hxg4 {[%emt 0:00:04]} 42. hxg4 {[%emt 0:00:01]} Bc8 {[%emt 0:00:06]} 43. g5 {[%emt 0:00:14]} Bg7 {[%emt 0:00:01]} 44. Kg3 {[%emt 0:00:03]} Bf5 {[%emt 0:00:02]} 45. Ng4 {[%emt 0:00:05]} Rc3 {[%emt 0:00:08]} 46. Nge5+ {[%emt 0:00:06]} Ke6 {[%emt 0:00:02]} 47. Nxd4+ {[%emt 0:00:02]} Kd6 {[%emt 0:00:03]} 48. Nb5+ {[%emt 0:00:02]} 1-0

[Event "Polish University-ch Open 2024"]
[Site "Lublin"]
[Date "2024.02.24"]
[Round "6.16"]
[White "Majdanski, Maksymilian"]
[Black "Golenia, Wojciech"]
[Result "0-1"]
[ECO "E18"]
[WhiteElo "2002"]
[BlackElo "2212"]
[Annotator "RC"]
[PlyCount "64"]
[EventDate "2024.02.22"]
[EventType "swiss"]
[EventCountry "POL"]
[SourceTitle "playchess.com"]
[Source "ChessBase"]
[SourceQuality "1"]
[TimeControl "600+3"]

1. d4 {[%emt 0:00:01]} Nf6 {[%emt 0:01:01]} 2. Nf3 {[%emt 0:00:03]} e6 {[%emt 0:00:02]} 3. g3 {[%emt 0:00:08]} b6 {[%emt 0:00:01]} 4. Bg2 {[%emt 0:00:03]} Bb7 {[%emt 0:00:00]} 5. O-O {[%emt 0:00:03]} Be7 {[%emt 0:00:02]} 6. c4 {[%emt 0:00:12]} O-O {[%emt 0:00:04]} 7. Nc3 {[%emt 0:00:02]} Ne4 {[%emt 0:00:02]} 8. Bd2 {[%emt 0:00:14]} d5 {[%emt 0:00:09]} 9. cxd5 {[%emt 0:00:43]} exd5 {[%emt 0:00:03]} 10. Rc1 {[%emt 0:01:10]} Nd7 {[%emt 0:00:36]} 11. Bf4 {[%emt 0:00:26]} c5 {[%emt 0:01:02]} 12. Nxe4 {[%emt 0:00:33]} dxe4 {[%emt 0:00:10]} 13. Nd2 {[%emt 0:01:57]} Nf6 {[%emt 0:01:30]} 14. Be5 {[%emt 0:00:18]} Re8 {[%emt 0:01:06]} 15. e3 {[%emt 0:01:00]} Qd5 {[%emt 0:00:58]} 16. g4 {[%emt 0:01:59]} cxd4 {[%emt 0:02:05]} 17. Bxd4 {[%emt 0:00:38]} Rad8 {[%emt 0:00:49]} 18. h3 {[%emt 0:00:12]} Qxa2 {[%emt 0:00:13]} 19. Ra1 {[%emt 0:00:20]} Qe6 {[%emt 0:00:29]} 20. Rxa7 {[%emt 0:00:02]} Bd5 {[%emt 0:00:09]} 21. Ra6 {[%emt 0:00:37]} Nd7 {[%emt 0:00:08]} 22. Qe2 {[%emt 0:00:06]} Bd6 {[%emt 0:00:02]} 23. Rc1 {[%emt 0:00:08]} Bb8 {[%emt 0:00:06]} 24. Qb5 {[%emt 0:00:04]} Qd6 {[%emt 0:00:02]} 25. Bxb6 {[%emt 0:00:10]} Bb7 {[%emt 0:00:07]} 26. Bc5 {[%emt 0:00:07]} Bxa6 {[%emt 0:00:09]} 27. Bxd6 {[%emt 0:00:01]} Bxb5 {[%emt 0:00:02]} 28. Bxb8 {[%emt 0:00:01]} Rxb8 {[%emt 0:00:08]} 29. Nxe4 {[%emt 0:00:01]} Rec8 {[%emt 0:00:06]} 30. Rxc8+ {[%emt 0:00:04]} Rxc8 {[%emt 0:00:01]} 31. Nd6 {[%emt 0:00:00]} Rc1+ {[%emt 0:00:02]} 32. Kh2 {[%emt 0:00:01]} Bc6 {[%emt 0:00:02]} 0-1

[Event "Polish University-ch Open 2024"]
[Site "Lublin"]
[Date "2024.02.24"]
[Round "6.17"]
[White "Golenia, Jan"]
[Black "Poplawski, Maciej"]
[Result "1-0"]
[ECO "E90"]
[WhiteElo "2221"]
[BlackElo "1900"]
[Annotator "RC"]
[PlyCount "65"]
[EventDate "2024.02.22"]
[EventType "swiss"]
[EventCountry "POL"]
[SourceTitle "playchess.com"]
[Source "ChessBase"]
[SourceQuality "1"]
[TimeControl "600+3"]

1. d4 {[%emt 0:00:34]} Nf6 {[%emt 0:00:33]} 2. c4 {[%emt 0:00:04]} c5 {[%emt 0:00:01]} 3. d5 {[%emt 0:00:02]} d6 {[%emt 0:00:05]} 4. Nc3 {[%emt 0:00:01]} g6 {[%emt 0:00:21]} 5. e4 {[%emt 0:00:02]} Bg7 {[%emt 0:00:05]} 6. Nf3 {[%emt 0:00:02]} O-O {[%emt 0:00:21]} 7. h3 {[%emt 0:00:02]} Bd7 {[%emt 0:00:11]} 8. Bd3 {[%emt 0:00:05]} Na6 {[%emt 0:00:09]} 9. O-O {[%emt 0:00:12]} Nc7 {[%emt 0:00:21]} 10. Re1 {[%emt 0:00:08]} a6 {[%emt 0:00:02]} 11. a4 {[%emt 0:00:01]} b5 {[%emt 0:00:28]} 12. e5 {[%emt 0:02:23]} dxe5 {[%emt 0:00:30]} 13. Nxe5 {[%emt 0:00:03]} bxc4 {[%emt 0:00:48]} 14. Bxc4 {[%emt 0:00:04]} Nce8 {[%emt 0:00:02]} 15. Be3 {[%emt 0:01:12]} Qc7 {[%emt 0:00:43]} 16. Nd3 {[%emt 0:00:23]} Nd6 {[%emt 0:00:24]} 17. Ba2 {[%emt 0:00:09]} c4 {[%emt 0:00:37]} 18. Nc5 {[%emt 0:00:13]} Rfb8 {[%emt 0:00:17]} 19. Qe2 {[%emt 0:00:12]} Rb4 {[%emt 0:00:48]} 20. Bd4 {[%emt 0:01:00]} Nf5 {[%emt 0:00:36]} 21. Bxf6 {[%emt 0:01:36]} Bxf6 {[%emt 0:00:05]} 22. Nxd7 {[%emt 0:00:06]} Qxd7 {[%emt 0:00:10]} 23. Bxc4 {[%emt 0:00:38]} Nd4 {[%emt 0:01:07]} 24. Qd3 {[%emt 0:00:01]} Rxb2 {[%emt 0:00:02]} 25. Rab1 {[%emt 0:00:51]} Rxb1 {[%emt 0:00:18]} 26. Rxb1 {[%emt 0:00:03]} Qc7 {[%emt 0:00:30]} 27. Ne4 {[%emt 0:00:06]} Be5 {[%emt 0:00:20]} 28. Bxa6 {[%emt 0:00:07]} Qa5 {[%emt 0:00:20]} 29. Bc4 {[%emt 0:00:32]} Qxa4 {[%emt 0:00:12]} 30. d6 {[%emt 0:00:01]} exd6 {[%emt 0:00:10]} 31. f4 {[%emt 0:00:01]} Bg7 {[%emt 0:00:45]} 32. Nxd6 {[%emt 0:00:01]} Qa7 {[%emt 0:00:18]} 33. Kh1 {[%emt 0:00:11]} 1-0

[Event "Polish University-ch Open 2024"]
[Site "Lublin"]
[Date "2024.02.24"]
[Round "6.18"]
[White "Pytel, Maciej"]
[Black "Galuszka, Tomasz"]
[Result "1-0"]
[ECO "A03"]
[WhiteElo "1965"]
[BlackElo "2181"]
[Annotator "RC"]
[PlyCount "109"]
[EventDate "2024.02.22"]
[EventType "swiss"]
[EventCountry "POL"]
[SourceTitle "playchess.com"]
[Source "ChessBase"]
[SourceQuality "1"]
[TimeControl "600+3"]

1. f4 {[%emt 0:00:03]} d5 {[%emt 0:00:04]} 2. Nf3 {[%emt 0:00:02]} Nf6 {[%emt 0:00:02]} 3. g3 {[%emt 0:00:02]} g6 {[%emt 0:00:02]} 4. Bg2 {[%emt 0:00:02]} Bg7 {[%emt 0:00:01]} 5. O-O {[%emt 0:00:03]} O-O {[%emt 0:00:03]} 6. d3 {[%emt 0:00:02]} c5 {[%emt 0:00:05]} 7. Qe1 {[%emt 0:00:04]} Nc6 {[%emt 0:00:03]} 8. c3 {[%emt 0:00:02]} d4 {[%emt 0:00:26]} 9. Na3 {[%emt 0:00:29]} Nd5 {[%emt 0:01:14]} 10. Bd2 {[%emt 0:00:40]} e5 {[%emt 0:00:50]} 11. fxe5 {[%emt 0:00:07]} Nxe5 {[%emt 0:00:02]} 12. Nxe5 {[%emt 0:00:02]} Bxe5 {[%emt 0:00:02]} 13. c4 {[%emt 0:00:03]} Nc7 {[%emt 0:00:06]} 14. b4 {[%emt 0:00:10]} Ne6 {[%emt 0:00:57]} 15. bxc5 {[%emt 0:00:13]} Nxc5 {[%emt 0:00:01]} 16. Bh6 {[%emt 0:01:39]} Re8 {[%emt 0:00:01]} 17. Qf2 {[%emt 0:00:03]} f5 {[%emt 0:00:02]} 18. Nc2 {[%emt 0:00:14]} Be6 {[%emt 0:00:12]} 19. Rab1 {[%emt 0:00:48]} Qd7 {[%emt 0:00:05]} 20. Nb4 {[%emt 0:00:20]} Rac8 {[%emt 0:01:28]} 21. Nd5 {[%emt 0:00:08]} b6 {[%emt 0:00:05]} 22. Bg5 {[%emt 0:00:25]} Kg7 {[%emt 0:00:01]} 23. Bf4 {[%emt 0:00:06]} Bxd5 {[%emt 0:00:11]} 24. Bxe5+ {[%emt 0:01:18]} Rxe5 {[%emt 0:00:02]} 25. Qxd4 {[%emt 0:00:08]} Qd6 {[%emt 0:00:07]} 26. Bxd5 {[%emt 0:00:10]} Ne6 {[%emt 0:00:22]} 27. Qf2 {[%emt 0:00:04]} Re8 {[%emt 0:00:12]} 28. e4 {[%emt 0:00:15]} Ng5 {[%emt 0:00:29]} 29. Qb2 {[%emt 0:00:35]} fxe4 {[%emt 0:00:07]} 30. dxe4 {[%emt 0:00:18]} Kh6 {[%emt 0:02:01]} 31. Qc1 {[%emt 0:01:54]} Kg7 {[%emt 0:00:33]} 32. Kg2 {[%emt 0:00:02]} Qd7 {[%emt 0:00:30]} 33. Kh1 {[%emt 0:00:39]} R8e7 {[%emt 0:00:18]} 34. Qb2 {[%emt 0:00:09]} Kh6 {[%emt 0:00:11]} 35. Rf4 {[%emt 0:00:11]} Nxe4 {[%emt 0:00:29]} 36. Rh4+ {[%emt 0:00:03]} Kg5 {[%emt 0:00:12]} 37. Qc1+ {[%emt 0:00:06]} Kf6 {[%emt 0:00:01]} 38. Bxe4 {[%emt 0:00:11]} Rxe4 {[%emt 0:00:01]} 39. Qc3+ {[%emt 0:00:01]} Kg5 {[%emt 0:00:10]} 40. Rxe4 {[%emt 0:00:07]} Rxe4 {[%emt 0:00:01]} 41. Rf1 {[%emt 0:00:01]} Qd4 {[%emt 0:00:07]} 42. Qxd4 {[%emt 0:00:06]} Rxd4 {[%emt 0:00:01]} 43. Rf7 {[%emt 0:00:01]} a5 {[%emt 0:00:09]} 44. Rb7 {[%emt 0:00:02]} Rxc4 {[%emt 0:00:02]} 45. Rxb6 {[%emt 0:00:01]} Rc1+ {[%emt 0:00:01]} 46. Kg2 {[%emt 0:00:03]} Rc2+ {[%emt 0:00:01]} 47. Kf3 {[%emt 0:00:05]} Rxa2 {[%emt 0:00:01]} 48. h4+ {[%emt 0:00:01]} Kh6 {[%emt 0:00:02]} 49. Rb7 {[%emt 0:00:03]} Ra4 {[%emt 0:00:04]} 50. Ra7 {[%emt 0:00:04]} Ra2 {[%emt 0:00:05]} 51. Kf4 {[%emt 0:00:06]} Rf2+ {[%emt 0:00:02]} 52. Ke3 {[%emt 0:00:02]} Rf5 {[%emt 0:00:01]} 53. g4 {[%emt 0:00:02]} Re5+ {[%emt 0:00:08]} 54. Kf4 {[%emt 0:00:02]} Rb5 {[%emt 0:00:03]} 55. g5+ {[%emt 0:00:01]} 1-0

[Event "Polish University-ch Open 2024"]
[Site "Lublin"]
[Date "2024.02.24"]
[Round "7.1"]
[White "Kosakowski, Jakub"]
[Black "Kowalski, Igor"]
[Result "1-0"]
[ECO "B06"]
[WhiteElo "2482"]
[BlackElo "2372"]
[Annotator "TA"]
[PlyCount "98"]
[EventDate "2024.02.22"]
[EventType "swiss"]
[EventCountry "POL"]
[SourceTitle "playchess.com"]
[Source "ChessBase"]
[SourceQuality "1"]
[TimeControl "600+3"]

{[%evp 23,98,83,90,85,84,61,57,25,21,29,35,32,50,34,66,58,77,76,103,116,378,185,290,279,526,524,484,459,963,932,1000,956,946,545,733,586,726,697,618,600,915,892,1111,1086,1675,3578,29989,602,570,315,365,352,352,350,781,239,1133,1075,1229,1166,1348,1151,1280,1083,1905,1634,1789,1287,1862,1808,2019,1705,5097,3768,5543,2755,1723]} 1. e4 {[%emt 0:00:07]} g6 {[%emt 0:00:06]} 2. d4 {[%emt 0:00:05]} Bg7 {[%emt 0:00:02]} 3. Nf3 {[%emt 0:00:03]} d6 {[%emt 0:00:01]} 4. h3 {[%emt 0:00:18]} a6 {[%emt 0:00:10]} 5. Bd3 {[%emt 0:00:05]} Nf6 {[%emt 0:00:04]} 6. O-O {[%emt 0:00:04] B06: Modern Defence.} O-O {[%emt 0:00:02]} 7. Re1 {[%emt 0:00:08]} Nc6 {[%emt 0:00:18]} 8. c3 {[%emt 0:00:41]} e5 {[%emt 0:00:04]} 9. d5 {[%emt 0:00:21]} Ne7 {[%emt 0:00:02]} 10. c4 {[%emt 0:00:01]} c5 $146 {[%emt 0:00:19]} ({Predecessor:} 10... Nh5 11. Nc3 Nf4 12. Bxf4 exf4 13. Qd2 g5 14. e5 dxe5 15. Nxe5 Qd6 16. Nf3 h6 17. Bc2 Ng6 18. Rad1 Qb4 19. Bd3 Bd7 20. a3 Qb3 21. c5 Rfe8 {½-½ Miranovic,R (2358)-Nadj Hedjesi,B (2276) Vojvodina-chT 2nd League 2018 (8.3)}) 11. Nc3 {[%emt 0:00:10]} Nh5 {[%emt 0:00:05]} 12. Rb1 {[%emt 0:00:26]} h6 {[%emt 0:01:58]} 13. Bd2 {[%emt 0:00:53]} Nf4 {[%emt 0:00:05]} 14. Bxf4 {[%emt 0:01:36]} exf4 {[%emt 0:00:02]} 15. e5 {[%emt 0:00:02]} dxe5 {[%emt 0:00:29]} 16. Nxe5 {[%emt 0:00:04]} Nf5 {[%emt 0:00:03]} 17. Qd2 {[%emt 0:00:35]} g5 {[%emt 0:00:56]} 18. Nf3 $1 {[%emt 0:00:48]} Nd4 {[%emt 0:00:45]} 19. Nxd4 {[%emt 0:00:19]} Bxd4 {[%emt 0:00:02]} 20. Bc2 {[%emt 0:00:23]} f5 {[%emt 0:02:00]} 21. b4 {[%emt 0:00:06]} Qd6 $2 {[%emt 0:00:05][%mdl 8192]} (21... b6 $16 {was called for.}) 22. Na4 {[%emt 0:00:11]} (22. bxc5 $142 Bxc5 23. Na4) 22... b6 {[%emt 0:00:15]} (22... f3 $142 23. Rb3 (23. gxf3 $2 {perishes.} Qg3+ 24. Kf1 Qxh3+ 25. Ke2 Re8+ 26. Kd1 Bd7 $19) 23... b6 24. bxc5 (24. Rxf3 Bd7 $16) 24... bxc5) 23. bxc5 $18 {[%emt 0:00:04]} Bxc5 $2 {[%emt 0:00:02]} (23... bxc5 24. Rb6 Qd8 25. Rg6+ (25. Rxh6 Rf6 $18) 25... Kh7) 24. Nxc5 $18 {[%emt 0:00:09]} Qxc5 {[%emt 0:00:39]} 25. d6 {[%emt 0:00:29]} Bd7 {[%emt 0:00:15]} (25... Ra7 $142 26. Rbd1 Rg7) 26. Re7 $18 {[%emt 0:00:04]} Rf7 {[%emt 0:00:01]} 27. Rbe1 {[%emt 0:00:23]} Raf8 {[%emt 0:00:02]} 28. R7e5 {[%emt 0:00:13]} Qc8 {[%emt 0:00:42]} 29. Qd4 {[%emt 0:00:11]} Kh7 {[%emt 0:00:26]} 30. Qxb6 {[%emt 0:00:17]} f3 {[%emt 0:00:12]} 31. gxf3 {[%emt 0:00:33]} Qa8 {[%emt 0:00:44]} 32. Qe3 {[%emt 0:00:23]} Kg7 {[%emt 0:00:30]} 33. Re7 {[%emt 0:00:13]} g4 {[%emt 0:00:07]} 34. hxg4 {[%emt 0:00:20]} fxg4 {[%emt 0:00:01]} 35. Qe4 {[%emt 0:00:11]} (35. Qd3 $142 Kh8 36. Qg6 Qxf3 37. Qxh6+ Kg8 38. Bh7+ Kh8 39. Be4+ Kg8 40. Bxf3) 35... Qxe4 $18 {[%emt 0:00:04]} 36. Bxe4 {[%emt 0:00:10]} (36. fxe4 Rxe7 37. dxe7 Rf7 $16) 36... Rxe7 {[%emt 0:00:05]} 37. dxe7 {[%emt 0:00:01]} Re8 {[%emt 0:00:00]} 38. fxg4 {[%emt 0:00:19]} Kf6 $2 {[%emt 0:00:03]} (38... Rxe7 39. f3 Re5) 39. Bf3 $2 {[%emt 0:00:18]} (39. Bf5 Bxf5 40. gxf5 Kxf5 41. Kg2) 39... Rxe7 $2 {[%emt 0:00:05]} (39... Be6 40. c5 (40. Bd5 Bxg4 41. Rb1 Rxe7 $18) 40... Rxe7) 40. Rxe7 $18 {[%emt 0:00:03]} Kxe7 {[%emt 0:00:00]} 41. Kg2 {[%emt 0:00:05]} Be6 {[%emt 0:00:04]} 42. Be2 {[%emt 0:00:03]} Kd6 {[%emt 0:00:02]} 43. f4 {[%emt 0:00:02]} Kc5 {[%emt 0:00:01]} 44. Kf3 {[%emt 0:00:06]} Kd4 {[%emt 0:00:01]} 45. f5 {[%emt 0:00:05]} Bf7 {[%emt 0:00:04]} 46. Kf4 {[%emt 0:00:01]} a5 {[%emt 0:00:01]} 47. a4 {[%emt 0:00:05]} Be8 {[%emt 0:00:13]} 48. f6 {[%emt 0:00:05]} Bg6 {[%emt 0:00:01]} 49. Bd3 {[%emt 0:00:06]} Bf7 {[%emt 0:00:12]} 1-0

[Event "Polish University-ch Open 2024"]
[Site "Lublin"]
[Date "2024.02.24"]
[Round "7.2"]
[White "Snihur, Piotr"]
[Black "Janik, Igor"]
[Result "0-1"]
[ECO "B15"]
[WhiteElo "2278"]
[BlackElo "2499"]
[Annotator "RC"]
[PlyCount "93"]
[EventDate "2024.02.22"]
[EventType "swiss"]
[EventCountry "POL"]
[SourceTitle "playchess.com"]
[Source "ChessBase"]
[SourceQuality "1"]
[TimeControl "600+3"]

1. e4 {[%emt 0:00:02]} c6 {[%emt 0:00:02]} 2. d4 {[%emt 0:00:10]} d5 {[%emt 0:00:02]} 3. Nc3 {[%emt 0:00:04]} a6 {[%emt 0:00:02]} 4. h3 {[%emt 0:00:18]} dxe4 {[%emt 0:00:03]} 5. Nxe4 {[%emt 0:00:01]} Bf5 {[%emt 0:00:01]} 6. Ng3 {[%emt 0:00:10]} Bg6 {[%emt 0:00:02]} 7. h4 {[%emt 0:00:07]} h6 {[%emt 0:00:01]} 8. Nf3 {[%emt 0:00:03]} e6 {[%emt 0:00:02]} 9. h5 {[%emt 0:00:07]} Bh7 {[%emt 0:00:01]} 10. Bd3 {[%emt 0:00:01]} Bxd3 {[%emt 0:00:01]} 11. Qxd3 {[%emt 0:00:01]} Nf6 {[%emt 0:00:02]} 12. Bd2 {[%emt 0:00:28]} c5 {[%emt 0:00:02]} 13. O-O-O {[%emt 0:00:34]} Nc6 {[%emt 0:00:09]} 14. Be3 {[%emt 0:00:18]} Qa5 {[%emt 0:00:49]} 15. a3 {[%emt 0:00:40]} O-O-O {[%emt 0:00:26]} 16. Qb3 {[%emt 0:00:10]} Nd5 {[%emt 0:00:29]} 17. Ne4 {[%emt 0:01:19]} Nxe3 {[%emt 0:00:49]} 18. fxe3 {[%emt 0:00:04]} Be7 {[%emt 0:00:16]} 19. d5 {[%emt 0:01:49]} c4 {[%emt 0:00:08]} 20. Qc3 {[%emt 0:00:35]} exd5 {[%emt 0:01:01]} 21. Qxa5 {[%emt 0:00:04]} Nxa5 {[%emt 0:00:01]} 22. Nc3 {[%emt 0:00:01]} Bc5 {[%emt 0:00:30]} 23. Nxd5 {[%emt 0:00:09]} Rhe8 {[%emt 0:00:07]} 24. Rhe1 {[%emt 0:00:10]} Nc6 {[%emt 0:00:15]} 25. e4 {[%emt 0:00:09]} f6 {[%emt 0:00:22]} 26. Nf4 {[%emt 0:02:26]} Rxd1+ {[%emt 0:00:09]} 27. Kxd1 {[%emt 0:00:01]} b5 {[%emt 0:00:43]} 28. c3 {[%emt 0:00:14]} Bd6 {[%emt 0:00:19]} 29. Nd5 {[%emt 0:00:19]} Ne5 {[%emt 0:00:18]} 30. Nxe5 {[%emt 0:00:11]} Rxe5 {[%emt 0:00:05]} 31. g4 {[%emt 0:00:01]} Bc5 {[%emt 0:00:31]} 32. Re2 {[%emt 0:00:27]} Kd7 {[%emt 0:00:05]} 33. Kc2 {[%emt 0:00:10]} Kc6 {[%emt 0:00:06]} 34. b4 {[%emt 0:00:06]} cxb3+ {[%emt 0:00:16]} 35. Kxb3 {[%emt 0:00:01]} Rg5 {[%emt 0:00:08]} 36. Rg2 {[%emt 0:00:02]} f5 {[%emt 0:00:14]} 37. Nb4+ {[%emt 0:00:16]} Bxb4 {[%emt 0:00:02]} 38. axb4 {[%emt 0:00:05]} fxg4 {[%emt 0:00:07]} 39. c4 {[%emt 0:00:02]} g3 {[%emt 0:00:26]} 40. cxb5+ {[%emt 0:00:01]} Kxb5 {[%emt 0:00:13]} 41. Kc3 {[%emt 0:00:02]} g6 {[%emt 0:00:16]} 42. hxg6 {[%emt 0:00:03]} h5 {[%emt 0:00:07]} 43. Kd4 {[%emt 0:00:02]} h4 {[%emt 0:00:03]} 44. e5 {[%emt 0:00:01]} Rxg6 {[%emt 0:00:16]} 45. Kd5 {[%emt 0:00:01]} h3 {[%emt 0:00:02]} 46. Rc2 {[%emt 0:00:12]} h2 {[%emt 0:00:07]} 47. e6 {[%emt 0:00:07]} 0-1

[Event "Polish University-ch Open 2024"]
[Site "Lublin"]
[Date "2024.02.24"]
[Round "7.3"]
[White "Szpar, Milosz"]
[Black "Psyk, Radoslaw"]
[Result "1-0"]
[ECO "C10"]
[WhiteElo "2495"]
[BlackElo "2461"]
[Annotator "RC"]
[PlyCount "119"]
[EventDate "2024.02.22"]
[EventType "swiss"]
[EventCountry "POL"]
[SourceTitle "playchess.com"]
[Source "ChessBase"]
[SourceQuality "1"]
[TimeControl "600+3"]

1. e4 {[%emt 0:00:01]} e6 {[%emt 0:00:04]} 2. d4 {[%emt 0:00:31]} d5 {[%emt 0:00:03]} 3. Nc3 {[%emt 0:00:09]} Nf6 {[%emt 0:00:04]} 4. Bg5 {[%emt 0:00:02]} dxe4 {[%emt 0:00:48]} 5. Nxe4 {[%emt 0:00:02]} Nbd7 {[%emt 0:00:01]} 6. Nf3 {[%emt 0:00:02]} h6 {[%emt 0:00:02]} 7. Nxf6+ {[%emt 0:00:12]} Nxf6 {[%emt 0:00:02]} 8. Be3 {[%emt 0:00:56]} Bd6 {[%emt 0:00:21]} 9. Bd3 {[%emt 0:00:15]} O-O {[%emt 0:01:33]} 10. Qd2 {[%emt 0:00:58]} Nd5 {[%emt 0:00:08]} 11. O-O-O {[%emt 0:01:15]} b6 {[%emt 0:01:05]} 12. Ne5 {[%emt 0:00:23]} Nxe3 {[%emt 0:01:24]} 13. Qxe3 {[%emt 0:00:03]} Bb7 {[%emt 0:00:02]} 14. f4 {[%emt 0:00:46]} Bxe5 {[%emt 0:01:49]} 15. dxe5 {[%emt 0:00:19]} Qe7 {[%emt 0:00:04]} 16. Rhg1 {[%emt 0:00:09]} Rad8 {[%emt 0:00:41]} 17. g4 {[%emt 0:00:04]} Qc5 {[%emt 0:00:27]} 18. Qg3 {[%emt 0:00:44]} g6 {[%emt 0:00:56]} 19. Kb1 {[%emt 0:01:53]} Rd5 {[%emt 0:00:16]} 20. Qh4 {[%emt 0:00:19]} Rfd8 {[%emt 0:00:38]} 21. f5 {[%emt 0:00:25]} Ba6 {[%emt 0:00:30]} 22. fxg6 {[%emt 0:00:27]} fxg6 {[%emt 0:00:01]} 23. Qxh6 {[%emt 0:00:19]} Bxd3 {[%emt 0:00:07]} 24. cxd3 {[%emt 0:00:01]} Qe7 {[%emt 0:00:05]} 25. Qxg6+ {[%emt 0:00:03]} Qg7 {[%emt 0:00:02]} 26. Qxe6+ {[%emt 0:00:02]} Qf7 {[%emt 0:00:01]} 27. Qf5 {[%emt 0:00:11]} Re8 {[%emt 0:00:05]} 28. e6 {[%emt 0:00:08]} Qxe6 {[%emt 0:00:02]} 29. Qf4 {[%emt 0:00:32]} Qe3 {[%emt 0:00:05]} 30. Qc4 {[%emt 0:00:11]} Qc5 {[%emt 0:00:01]} 31. Qxc5 {[%emt 0:00:04]} Rxc5 {[%emt 0:00:01]} 32. Rc1 {[%emt 0:00:01]} Rd5 {[%emt 0:00:06]} 33. Rxc7 {[%emt 0:00:04]} Rxd3 {[%emt 0:00:03]} 34. Rxa7 {[%emt 0:00:03]} Rd2 {[%emt 0:00:01]} 35. Rb7 {[%emt 0:00:02]} Re6 {[%emt 0:00:05]} 36. Rc1 {[%emt 0:00:03]} Rd8 {[%emt 0:00:02]} 37. a3 {[%emt 0:00:03]} Kf8 {[%emt 0:00:04]} 38. Ka2 {[%emt 0:00:02]} Rh6 {[%emt 0:00:02]} 39. Rc2 {[%emt 0:00:02]} Kg8 {[%emt 0:00:01]} 40. g5 {[%emt 0:00:02]} Rh5 {[%emt 0:00:05]} 41. g6 {[%emt 0:00:04]} b5 {[%emt 0:00:02]} 42. Rcc7 {[%emt 0:00:05]} Rxh2 {[%emt 0:00:05]} 43. Rg7+ {[%emt 0:00:02]} Kh8 {[%emt 0:00:01]} 44. Rh7+ {[%emt 0:00:02]} Rxh7 {[%emt 0:00:01]} 45. Rxh7+ {[%emt 0:00:02]} Kg8 {[%emt 0:00:01]} 46. Rb7 {[%emt 0:00:03]} Rd5 {[%emt 0:00:04]} 47. Kb3 {[%emt 0:00:02]} Rg5 {[%emt 0:00:06]} 48. Kb4 {[%emt 0:00:04]} Kf8 {[%emt 0:00:05]} 49. g7+ {[%emt 0:00:02]} Kg8 {[%emt 0:00:03]} 50. Rxb5 {[%emt 0:00:04]} Rg4+ {[%emt 0:00:03]} 51. Ka5 {[%emt 0:00:05]} Kxg7 {[%emt 0:00:02]} 52. Rf5 {[%emt 0:00:07]} Kg6 {[%emt 0:00:02]} 53. Rf2 {[%emt 0:00:02]} Rg3 {[%emt 0:00:03]} 54. Ka4 {[%emt 0:00:05]} Rg4+ {[%emt 0:00:04]} 55. b4 {[%emt 0:00:02]} Kg7 {[%emt 0:00:02]} 56. Ka5 {[%emt 0:00:03]} Rc4 {[%emt 0:00:06]} 57. a4 {[%emt 0:00:01]} Rc8 {[%emt 0:00:01]} 58. b5 {[%emt 0:00:02]} Ra8+ {[%emt 0:00:01]} 59. Kb4 {[%emt 0:00:00]} Rb8 {[%emt 0:00:00]} 60. a5 {[%emt 0:00:01]} 1-0